[Event "Titled Tuesday Blitz February 28 Early 2023"]
[White "Ciuffoletti, Paolo"]
[Black "Bas Mas, Jose Joaquin"]
[WhiteFideId "807630"]
[BlackFideId "22219064"]
[WhiteElo "2143"]
[BlackElo "2233"]
[Result "0-1"]
[Round "04"]
[TimeControl "180+2"]
[Date "2023.02.28"]
[WhiteClock "0:00:01"]
[BlackClock "0:00:51"]

1. e4 {[%clk 0:03:00]}  e6 {[%clk 0:03:00]} 2. d4 {[%clk 0:02:59]}  d5 {[%clk 0:03:00]} 3. e5 {[%clk 0:03:00]}  c5 {[%clk 0:03:00]} 4. c3 {[%clk 0:03:00]}  Nc6 {[%clk 0:03:00]} 5. Nf3 {[%clk 0:03:00]}  Qb6 {[%clk 0:03:01]} 6. a3 {[%clk 0:03:00]}  c4 {[%clk 0:03:01]} 7. Nbd2 {[%clk 0:03:00]}  Na5 {[%clk 0:03:02]} 8. Rb1 {[%clk 0:02:57]}  Bd7 {[%clk 0:03:01]} 9. Be2 {[%clk 0:02:56]}  Qc7 {[%clk 0:02:59]} 10. O-O {[%clk 0:02:52]}  Ne7 {[%clk 0:02:59]} 11. Nh4 {[%clk 0:02:27]}  Nc8 {[%clk 0:02:52]} 12. f4 {[%clk 0:02:25]}  Be7 {[%clk 0:02:51]} 13. Qe1 {[%clk 0:02:09]}  Nb6 {[%clk 0:02:47]} 14. f5 {[%clk 0:01:51]}  Bxh4 {[%clk 0:02:13]} 15. Qxh4 {[%clk 0:01:50]}  exf5 {[%clk 0:02:13]} 16. Nf3 {[%clk 0:01:33]}  Be6 {[%clk 0:02:04]} 17. Bg5 {[%clk 0:01:15]}  h6 {[%clk 0:01:45]} 18. Ne1 {[%clk 0:00:46]}  Nb3 {[%clk 0:01:43]} 19. Nc2 {[%clk 0:00:44]}  Kd7 {[%clk 0:01:34]} 20. Be3 {[%clk 0:00:26]}  g5 {[%clk 0:01:32]} 21. Qh5 {[%clk 0:00:26]}  Rag8 {[%clk 0:01:16]} 22. Rbd1 {[%clk 0:00:20]}  Nc8 {[%clk 0:01:12]} 23. Bc1 {[%clk 0:00:19]}  Ne7 {[%clk 0:01:10]} 24. Ne3 {[%clk 0:00:18]}  Kc8 {[%clk 0:01:07]} 25. Bxc4 {[%clk 0:00:16]}  dxc4 {[%clk 0:01:06]} 26. d5 {[%clk 0:00:16]}  Qxe5 {[%clk 0:01:05]} 27. dxe6 {[%clk 0:00:15]}  fxe6 {[%clk 0:01:05]} 28. Rfe1 {[%clk 0:00:15]}  Rd8 {[%clk 0:00:57]} 29. Nxc4 {[%clk 0:00:12]}  Qc5+ {[%clk 0:00:54]} 30. Kh1 {[%clk 0:00:01]}  Qxc4 {[%clk 0:00:51]} 0-1


[Site "https://www.chess.com"]

[Event "Titled Tuesday Blitz February 28 Early 2023"]
[White "Hertlein, Irena"]
[Black "Guliev, Logman"]
[WhiteFideId "21817618"]
[BlackFideId "13400061"]
[WhiteElo "1776"]
[BlackElo "2161"]
[Result "0-1"]
[Round "04"]
[TimeControl "180+2"]
[Date "2023.02.28"]
[WhiteClock "0:00:02"]
[BlackClock "0:00:09"]

1. Nf3 {[%clk 0:03:00]}  Nf6 {[%clk 0:02:53]} 2. c4 {[%clk 0:03:00]}  e6 {[%clk 0:02:53]} 3. b3 {[%clk 0:02:59]}  d5 {[%clk 0:02:52]} 4. Bb2 {[%clk 0:03:00]}  Be7 {[%clk 0:02:51]} 5. e3 {[%clk 0:03:00]}  O-O {[%clk 0:02:51]} 6. Nc3 {[%clk 0:03:00]}  b6 {[%clk 0:02:52]} 7. cxd5 {[%clk 0:02:59]}  exd5 {[%clk 0:02:50]} 8. Rc1 {[%clk 0:02:45]}  c5 {[%clk 0:02:47]} 9. d4 {[%clk 0:02:44]}  Bg4 {[%clk 0:02:34]} 10. Be2 {[%clk 0:02:37]}  Nbd7 {[%clk 0:02:33]} 11. O-O {[%clk 0:02:34]}  Rc8 {[%clk 0:02:31]} 12. h3 {[%clk 0:02:34]}  Bh5 {[%clk 0:02:29]} 13. Nh4 {[%clk 0:02:27]}  Bxe2 {[%clk 0:02:25]} 14. Nxe2 {[%clk 0:02:27]}  Ne4 {[%clk 0:02:16]} 15. Nf5 {[%clk 0:02:24]}  Ndf6 {[%clk 0:02:14]} 16. dxc5 {[%clk 0:02:20]}  Bxc5 {[%clk 0:02:04]} 17. Nf4 {[%clk 0:02:12]}  Qd7 {[%clk 0:01:50]} 18. Nd4 {[%clk 0:01:47]}  Rfd8 {[%clk 0:01:43]} 19. Nh5 {[%clk 0:01:45]}  Bxd4 {[%clk 0:01:15]} 20. Bxd4 {[%clk 0:01:13]}  Rxc1 {[%clk 0:01:10]} 21. Nxf6+ {[%clk 0:01:13]}  Nxf6 {[%clk 0:01:10]} 22. Qxc1 {[%clk 0:01:12]}  Ne4 {[%clk 0:01:10]} 23. Qb2 {[%clk 0:01:10]}  f6 {[%clk 0:01:10]} 24. Rc1 {[%clk 0:00:55]}  Rc8 {[%clk 0:01:07]} 25. f3 {[%clk 0:00:46]}  Ng3 {[%clk 0:01:04]} 26. Kf2 {[%clk 0:00:43]}  Nf5 {[%clk 0:00:58]} 27. Rxc8+ {[%clk 0:00:42]}  Qxc8 {[%clk 0:00:57]} 28. Qc3 {[%clk 0:00:43]}  Qb8 {[%clk 0:00:40]} 29. f4 {[%clk 0:00:27]}  Nd6 {[%clk 0:00:36]} 30. Qc6 {[%clk 0:00:25]}  Ne4+ {[%clk 0:00:35]} 31. Kg1 {[%clk 0:00:22]}  Qd8 {[%clk 0:00:35]} 32. Qe6+ {[%clk 0:00:18]}  Kh8 {[%clk 0:00:34]} 33. g4 {[%clk 0:00:18]}  h6 {[%clk 0:00:32]} 34. g5 {[%clk 0:00:17]}  hxg5 {[%clk 0:00:31]} 35. fxg5 {[%clk 0:00:17]}  Nxg5 {[%clk 0:00:32]} 36. Qg4 {[%clk 0:00:16]}  Qe8 {[%clk 0:00:30]} 37. h4 {[%clk 0:00:16]}  Ne4 {[%clk 0:00:28]} 38. Qf5 {[%clk 0:00:14]}  Qc6 {[%clk 0:00:23]} 39. Qh5+ {[%clk 0:00:13]}  Kg8 {[%clk 0:00:22]} 40. Qe2 {[%clk 0:00:10]}  Qe6 {[%clk 0:00:20]} 41. Qf3 {[%clk 0:00:09]}  Qc8 {[%clk 0:00:18]} 42. Qf4 {[%clk 0:00:07]}  Qh3 {[%clk 0:00:16]} 43. Qb8+ {[%clk 0:00:04]}  Kh7 {[%clk 0:00:15]} 44. Qf4 {[%clk 0:00:05]}  Qc8 {[%clk 0:00:12]} 45. Qf3 {[%clk 0:00:04]}  Qc1+ {[%clk 0:00:12]} 46. Kg2 {[%clk 0:00:03]}  Qd2+ {[%clk 0:00:12]} 47. Kh3 {[%clk 0:00:02]}  Qc2 {[%clk 0:00:10]} 48. Qf5+ {[%clk 0:00:02]}  g6 {[%clk 0:00:09]} 49. Qd7+ {[%clk 0:00:02]}  Kh6 {[%clk 0:00:09]} 0-1


[Site "https://www.chess.com"]

[Event "Titled Tuesday Blitz February 28 Early 2023"]
[White "Levine, David"]
[Black "Sreyas Payyappat"]
[WhiteFideId "2011611"]
[BlackFideId "46674969"]
[WhiteElo "2117"]
[BlackElo "2083"]
[Result "0-1"]
[Round "04"]
[TimeControl "180+2"]
[Date "2023.02.28"]
[WhiteClock "0:00:03"]
[BlackClock "0:00:10"]

1. d4 {[%clk 0:02:59]}  Nf6 {[%clk 0:02:59]} 2. c4 {[%clk 0:02:59]}  c5 {[%clk 0:03:00]} 3. d5 {[%clk 0:02:59]}  e6 {[%clk 0:03:00]} 4. Nc3 {[%clk 0:02:58]}  exd5 {[%clk 0:03:01]} 5. cxd5 {[%clk 0:02:58]}  d6 {[%clk 0:03:01]} 6. Nf3 {[%clk 0:02:56]}  g6 {[%clk 0:03:01]} 7. e4 {[%clk 0:02:56]}  Bg7 {[%clk 0:03:02]} 8. g3 {[%clk 0:02:56]}  O-O {[%clk 0:03:02]} 9. Bg2 {[%clk 0:02:56]}  Re8 {[%clk 0:03:02]} 10. Nd2 {[%clk 0:02:51]}  b5 {[%clk 0:02:57]} 11. Nxb5 {[%clk 0:02:46]}  Ba6 {[%clk 0:02:45]} 12. Nc3 {[%clk 0:02:31]}  Nbd7 {[%clk 0:02:42]} 13. Bf1 {[%clk 0:02:31]}  Bxf1 {[%clk 0:02:39]} 14. Kxf1 {[%clk 0:02:30]}  Ne5 {[%clk 0:02:35]} 15. Qc2 {[%clk 0:02:23]}  Qb6 {[%clk 0:02:25]} 16. Kg2 {[%clk 0:02:22]}  c4 {[%clk 0:02:23]} 17. h3 {[%clk 0:02:09]}  Rac8 {[%clk 0:02:12]} 18. Rf1 {[%clk 0:02:02]}  Qd4 {[%clk 0:02:01]} 19. Nb5 {[%clk 0:01:44]}  Qc5 {[%clk 0:01:57]} 20. Na3 {[%clk 0:01:33]}  a6 {[%clk 0:01:33]} 21. f4 {[%clk 0:01:27]}  Nd3 {[%clk 0:01:29]} 22. Naxc4 {[%clk 0:01:20]}  Qd4 {[%clk 0:00:51]} 23. b3 {[%clk 0:00:46]}  Nxe4 {[%clk 0:00:32]} 24. Nxe4 {[%clk 0:00:38]}  Qxe4+ {[%clk 0:00:28]} 25. Kh2 {[%clk 0:00:31]}  Bxa1 {[%clk 0:00:24]} 26. Ba3 {[%clk 0:00:25]}  Qe2+ {[%clk 0:00:20]} 27. Qxe2 {[%clk 0:00:23]}  Rxe2+ {[%clk 0:00:20]} 28. Kh1 {[%clk 0:00:21]}  Nf2+ {[%clk 0:00:20]} 29. Kg2 {[%clk 0:00:18]}  Bd4 {[%clk 0:00:20]} 30. Bxd6 {[%clk 0:00:09]}  Rxa2 {[%clk 0:00:14]} 31. Be5 {[%clk 0:00:06]}  Bxe5 {[%clk 0:00:13]} 32. fxe5 {[%clk 0:00:06]}  Nd3+ {[%clk 0:00:13]} 33. Kf3 {[%clk 0:00:06]}  Nc5 {[%clk 0:00:12]} 34. d6 {[%clk 0:00:03]}  Rd8 {[%clk 0:00:10]} 0-1


[Site "https://www.chess.com"]

[Event "Titled Tuesday Blitz February 28 Early 2023"]
[White "Grot, Blazej"]
[Black "Chemin, Justo Reinaldo"]
[WhiteFideId "21835845"]
[BlackFideId "2101580"]
[WhiteElo "1823"]
[BlackElo "1940"]
[Result "1-0"]
[Round "04"]
[TimeControl "180+2"]
[Date "2023.02.28"]
[WhiteClock "0:00:01"]
[BlackClock "0:00:01"]

1. e4 {[%clk 0:03:00]}  e6 {[%clk 0:02:59]} 2. d4 {[%clk 0:03:00]}  d5 {[%clk 0:02:59]} 3. Nc3 {[%clk 0:02:56]}  Bb4 {[%clk 0:02:57]} 4. e5 {[%clk 0:02:55]}  c5 {[%clk 0:02:57]} 5. a3 {[%clk 0:02:54]}  Bxc3+ {[%clk 0:02:57]} 6. bxc3 {[%clk 0:02:51]}  Qc7 {[%clk 0:02:57]} 7. Qg4 {[%clk 0:02:40]}  f6 {[%clk 0:02:57]} 8. Nf3 {[%clk 0:02:33]}  Nc6 {[%clk 0:02:50]} 9. Bb5 {[%clk 0:02:20]}  Qf7 {[%clk 0:02:39]} 10. O-O {[%clk 0:02:02]}  h5 {[%clk 0:02:14]} 11. Qg3 {[%clk 0:01:50]}  Bd7 {[%clk 0:02:04]} 12. Bxc6 {[%clk 0:01:43]}  bxc6 {[%clk 0:01:55]} 13. dxc5 {[%clk 0:01:43]}  Ne7 {[%clk 0:01:52]} 14. Rb1 {[%clk 0:01:32]}  Nf5 {[%clk 0:01:49]} 15. Qf4 {[%clk 0:01:30]}  g5 {[%clk 0:01:45]} 16. Qb4 {[%clk 0:01:10]}  g4 {[%clk 0:01:43]} 17. Nd4 {[%clk 0:01:07]}  fxe5 {[%clk 0:01:40]} 18. Qb7 {[%clk 0:00:59]}  Rc8 {[%clk 0:01:27]} 19. Nxf5 {[%clk 0:00:55]}  exf5 {[%clk 0:01:22]} 20. Re1 {[%clk 0:00:50]}  e4 {[%clk 0:01:18]} 21. Bf4 {[%clk 0:00:47]}  O-O {[%clk 0:01:17]} 22. Qxa7 {[%clk 0:00:40]}  Ra8 {[%clk 0:01:15]} 23. Qc7 {[%clk 0:00:37]}  Be6 {[%clk 0:00:52]} 24. Qxc6 {[%clk 0:00:36]}  Rfc8 {[%clk 0:00:46]} 25. Qd6 {[%clk 0:00:30]}  Rd8 {[%clk 0:00:43]} 26. Qe5 {[%clk 0:00:26]}  Re8 {[%clk 0:00:27]} 27. c6 {[%clk 0:00:24]}  Qg7 {[%clk 0:00:12]} 28. Qd6 {[%clk 0:00:22]}  Qe7 {[%clk 0:00:10]} 29. Qe5 {[%clk 0:00:20]}  Qg7 {[%clk 0:00:09]} 30. Qxg7+ {[%clk 0:00:20]}  Kxg7 {[%clk 0:00:09]} 31. Rb7+ {[%clk 0:00:20]}  Kf6 {[%clk 0:00:09]} 32. Bd6 {[%clk 0:00:13]}  Rec8 {[%clk 0:00:08]} 33. c7 {[%clk 0:00:12]}  Ra6 {[%clk 0:00:09]} 34. Bb4 {[%clk 0:00:10]}  Rc6 {[%clk 0:00:07]} 35. Ba5 {[%clk 0:00:10]}  d4 {[%clk 0:00:07]} 36. cxd4 {[%clk 0:00:09]}  Rxc2 {[%clk 0:00:07]} 37. h3 {[%clk 0:00:10]}  h4 {[%clk 0:00:05]} 38. hxg4 {[%clk 0:00:09]}  fxg4 {[%clk 0:00:04]} 39. Rxe4 {[%clk 0:00:09]}  Bd5 {[%clk 0:00:04]} 40. Re1 {[%clk 0:00:08]}  Bxb7 {[%clk 0:00:02]} 41. Rb1 {[%clk 0:00:04]}  g3 {[%clk 0:00:03]} 42. fxg3 {[%clk 0:00:01]}  Rxg2+ {[%clk 0:00:01]} 43. Kf1 {[%clk 0:00:01]} 1-0


[Site "https://www.chess.com"]

[Event "Titled Tuesday Blitz February 28 Early 2023"]
[White "Buksa, Nataliya"]
[Black "Necula, Iulian"]
[WhiteFideId "14123622"]
[BlackFideId "1232380"]
[WhiteElo "2316"]
[BlackElo "1790"]
[Result "1-0"]
[Round "04"]
[TimeControl "180+2"]
[Date "2023.02.28"]
[WhiteClock "0:02:31"]
[BlackClock "0:01:08"]

1. d4 {[%clk 0:03:00]}  d6 {[%clk 0:03:00]} 2. Nc3 {[%clk 0:03:00]}  f5 {[%clk 0:02:59]} 3. e4 {[%clk 0:02:56]}  fxe4 {[%clk 0:02:58]} 4. Nxe4 {[%clk 0:02:57]}  Nf6 {[%clk 0:02:58]} 5. Nxf6+ {[%clk 0:02:55]}  exf6 {[%clk 0:02:55]} 6. Nf3 {[%clk 0:02:56]}  Nc6 {[%clk 0:02:55]} 7. Be2 {[%clk 0:02:55]}  Be7 {[%clk 0:02:52]} 8. Bc4 {[%clk 0:02:55]}  d5 {[%clk 0:02:50]} 9. Bb5 {[%clk 0:02:55]}  Bd7 {[%clk 0:02:49]} 10. O-O {[%clk 0:02:55]}  O-O {[%clk 0:02:49]} 11. c3 {[%clk 0:02:54]}  a6 {[%clk 0:02:49]} 12. Ba4 {[%clk 0:02:54]}  Bd6 {[%clk 0:02:40]} 13. h3 {[%clk 0:02:54]}  Ne7 {[%clk 0:02:36]} 14. Bc2 {[%clk 0:02:53]}  Bf5 {[%clk 0:02:34]} 15. Bxf5 {[%clk 0:02:48]}  Nxf5 {[%clk 0:02:35]} 16. Qb3 {[%clk 0:02:49]}  Rb8 {[%clk 0:02:31]} 17. Qxd5+ {[%clk 0:02:47]}  Kh8 {[%clk 0:02:29]} 18. Qxf5 {[%clk 0:02:47]}  g6 {[%clk 0:02:27]} 19. Qc2 {[%clk 0:02:46]}  Qd7 {[%clk 0:02:21]} 20. Bd2 {[%clk 0:02:46]}  Rbe8 {[%clk 0:02:17]} 21. Rfe1 {[%clk 0:02:47]}  Rxe1+ {[%clk 0:02:16]} 22. Rxe1 {[%clk 0:02:46]}  Re8 {[%clk 0:02:17]} 23. Rxe8+ {[%clk 0:02:45]}  Qxe8 {[%clk 0:02:18]} 24. Qd3 {[%clk 0:02:46]}  b5 {[%clk 0:02:15]} 25. Qe3 {[%clk 0:02:44]}  Qf7 {[%clk 0:02:09]} 26. b3 {[%clk 0:02:44]}  c6 {[%clk 0:02:02]} 27. Qe4 {[%clk 0:02:44]}  Qd7 {[%clk 0:01:58]} 28. h4 {[%clk 0:02:39]}  Kg7 {[%clk 0:01:51]} 29. c4 {[%clk 0:02:37]}  Bc7 {[%clk 0:01:45]} 30. Bc3 {[%clk 0:02:35]}  Kh6 {[%clk 0:01:40]} 31. d5 {[%clk 0:02:32]}  f5 {[%clk 0:01:36]} 32. Qe3+ {[%clk 0:02:31]}  f4 {[%clk 0:01:35]} 33. Qe6 {[%clk 0:02:31]}  Qd8 {[%clk 0:01:10]} 34. Qf6 {[%clk 0:02:32]}  Qxf6 {[%clk 0:01:07]} 35. Bxf6 {[%clk 0:02:31]}  cxd5 {[%clk 0:01:08]} 36. cxd5 {[%clk 0:02:31]} 1-0


[Site "https://www.chess.com"]

[Event "Titled Tuesday Blitz February 28 Early 2023"]
[White "Nan, M K Khine Hlyan"]
[Black "Heinemann, Josefine"]
[WhiteFideId "13002899"]
[BlackFideId "12900460"]
[WhiteElo "1943"]
[BlackElo "2342"]
[Result "0-1"]
[Round "04"]
[TimeControl "180+2"]
[Date "2023.02.28"]
[WhiteClock "0:00:50"]
[BlackClock "0:01:11"]

1. e4 {[%clk 0:02:57]}  c5 {[%clk 0:02:55]} 2. Nf3 {[%clk 0:02:56]}  d6 {[%clk 0:02:53]} 3. d4 {[%clk 0:02:56]}  cxd4 {[%clk 0:02:53]} 4. Nxd4 {[%clk 0:02:57]}  Nf6 {[%clk 0:02:52]} 5. Nc3 {[%clk 0:02:55]}  a6 {[%clk 0:02:51]} 6. Be2 {[%clk 0:02:51]}  e6 {[%clk 0:02:48]} 7. O-O {[%clk 0:02:49]}  Nbd7 {[%clk 0:02:45]} 8. Bg5 {[%clk 0:02:49]}  Be7 {[%clk 0:02:42]} 9. Kh1 {[%clk 0:02:45]}  Qc7 {[%clk 0:02:42]} 10. f4 {[%clk 0:02:43]}  b5 {[%clk 0:02:41]} 11. Bf3 {[%clk 0:02:32]}  Bb7 {[%clk 0:02:41]} 12. e5 {[%clk 0:02:26]}  dxe5 {[%clk 0:02:37]} 13. Bxb7 {[%clk 0:02:06]}  Qxb7 {[%clk 0:02:36]} 14. fxe5 {[%clk 0:02:02]}  Nxe5 {[%clk 0:02:36]} 15. Qe2 {[%clk 0:01:51]}  Ned7 {[%clk 0:02:07]} 16. Nxe6 {[%clk 0:01:40]}  fxe6 {[%clk 0:02:06]} 17. Qxe6 {[%clk 0:01:40]}  Qb6 {[%clk 0:02:04]} 18. Qe2 {[%clk 0:01:28]}  Kf7 {[%clk 0:01:39]} 19. Bxf6 {[%clk 0:01:16]}  Nxf6 {[%clk 0:01:33]} 20. Qxe7+ {[%clk 0:01:16]}  Kxe7 {[%clk 0:01:31]} 21. Nd5+ {[%clk 0:01:16]}  Nxd5 {[%clk 0:01:29]} 22. Rae1+ {[%clk 0:01:11]}  Kd6 {[%clk 0:01:27]} 23. b3 {[%clk 0:01:05]}  Rae8 {[%clk 0:01:24]} 24. Rd1 {[%clk 0:01:04]}  Kc6 {[%clk 0:01:21]} 25. c4 {[%clk 0:01:02]}  bxc4 {[%clk 0:01:21]} 26. bxc4 {[%clk 0:01:02]}  Nc7 {[%clk 0:01:21]} 27. Rf7 {[%clk 0:00:55]}  Rd8 {[%clk 0:01:16]} 28. Rc1 {[%clk 0:00:54]}  Qe3 {[%clk 0:01:13]} 29. Rxc7+ {[%clk 0:00:50]}  Kxc7 {[%clk 0:01:11]} 0-1


[Site "https://www.chess.com"]

[Event "Titled Tuesday Blitz February 28 Early 2023"]
[White "Fieberg, Samuel"]
[Black "Castillo Pena, Patricia Evarista"]
[WhiteFideId "12901717"]
[BlackFideId "6412106"]
[WhiteElo "2465"]
[BlackElo "1919"]
[Result "1-0"]
[Round "04"]
[TimeControl "180+2"]
[Date "2023.02.28"]
[WhiteClock "0:00:09"]
[BlackClock "0:00:03"]

1. d4 {[%clk 0:02:58]}  d5 {[%clk 0:02:59]} 2. Nf3 {[%clk 0:02:58]}  Nf6 {[%clk 0:02:59]} 3. g3 {[%clk 0:02:57]}  c6 {[%clk 0:02:59]} 4. Bg2 {[%clk 0:02:57]}  e6 {[%clk 0:02:59]} 5. O-O {[%clk 0:02:57]}  Be7 {[%clk 0:02:59]} 6. c4 {[%clk 0:02:57]}  O-O {[%clk 0:02:57]} 7. Nc3 {[%clk 0:02:53]}  Nbd7 {[%clk 0:02:57]} 8. b3 {[%clk 0:02:51]}  b6 {[%clk 0:02:55]} 9. Bb2 {[%clk 0:02:50]}  Bb7 {[%clk 0:02:55]} 10. Re1 {[%clk 0:02:50]}  Rc8 {[%clk 0:02:47]} 11. a3 {[%clk 0:02:39]}  a6 {[%clk 0:02:47]} 12. Qd2 {[%clk 0:02:38]}  c5 {[%clk 0:02:41]} 13. cxd5 {[%clk 0:02:36]}  exd5 {[%clk 0:02:41]} 14. Ne5 {[%clk 0:02:13]}  cxd4 {[%clk 0:02:32]} 15. Qxd4 {[%clk 0:02:00]}  Bc5 {[%clk 0:02:24]} 16. Qf4 {[%clk 0:01:56]}  Bd6 {[%clk 0:02:08]} 17. Nxf7 {[%clk 0:01:15]}  Rxf7 {[%clk 0:01:04]} 18. Qxd6 {[%clk 0:00:56]}  Nc5 {[%clk 0:00:58]} 19. Qxd8+ {[%clk 0:00:52]}  Rxd8 {[%clk 0:00:56]} 20. b4 {[%clk 0:00:51]}  Nb3 {[%clk 0:00:51]} 21. Rad1 {[%clk 0:00:48]}  Ng4 {[%clk 0:00:18]} 22. Bf3 {[%clk 0:00:46]}  Ne5 {[%clk 0:00:10]} 23. Bxd5 {[%clk 0:00:41]}  Bxd5 {[%clk 0:00:10]} 24. e4 {[%clk 0:00:41]}  Nf3+ {[%clk 0:00:06]} 25. Kh1 {[%clk 0:00:28]}  Nxe1 {[%clk 0:00:06]} 26. Nxd5 {[%clk 0:00:26]}  Nf3 {[%clk 0:00:04]} 27. Rd3 {[%clk 0:00:23]}  Rdf8 {[%clk 0:00:03]} 28. Rxb3 {[%clk 0:00:21]}  Nd2 {[%clk 0:00:03]} 29. Rd3 {[%clk 0:00:19]}  Nxe4 {[%clk 0:00:03]} 30. Re3 {[%clk 0:00:14]}  Nxf2+ {[%clk 0:00:03]} 31. Kg2 {[%clk 0:00:14]}  Ng4 {[%clk 0:00:03]} 32. Rb3 {[%clk 0:00:08]}  Rf2+ {[%clk 0:00:03]} 33. Kh3 {[%clk 0:00:08]}  h5 {[%clk 0:00:03]} 34. Kh4 {[%clk 0:00:09]}  Rxh2+ {[%clk 0:00:03]} 35. Kg5 {[%clk 0:00:09]} 1-0


[Site "https://www.chess.com"]

[Event "Titled Tuesday Blitz February 28 Early 2023"]
[White "Kaufman, Raymond"]
[Black "Fawzy, Adham"]
[WhiteFideId "2015056"]
[BlackFideId "10613129"]
[WhiteElo "2321"]
[BlackElo "2543"]
[Result "1-0"]
[Round "04"]
[TimeControl "180+2"]
[Date "2023.02.28"]
[WhiteClock "0:00:10"]
[BlackClock "0:00:11"]

1. c4 {[%clk 0:03:00]}  Nf6 {[%clk 0:02:58]} 2. g3 {[%clk 0:02:59]}  g6 {[%clk 0:02:58]} 3. Bg2 {[%clk 0:02:59]}  Bg7 {[%clk 0:02:58]} 4. Nc3 {[%clk 0:02:57]}  O-O {[%clk 0:02:59]} 5. e4 {[%clk 0:02:48]}  d6 {[%clk 0:02:55]} 6. Nge2 {[%clk 0:02:46]}  c5 {[%clk 0:02:37]} 7. O-O {[%clk 0:02:41]}  Nc6 {[%clk 0:02:37]} 8. d3 {[%clk 0:02:40]}  Rb8 {[%clk 0:02:36]} 9. h3 {[%clk 0:02:35]}  Ne8 {[%clk 0:02:29]} 10. Bg5 {[%clk 0:02:27]}  h6 {[%clk 0:02:22]} 11. Be3 {[%clk 0:02:26]}  Nc7 {[%clk 0:02:22]} 12. d4 {[%clk 0:02:24]}  b5 {[%clk 0:02:22]} 13. cxb5 {[%clk 0:02:14]}  Nxb5 {[%clk 0:02:09]} 14. dxc5 {[%clk 0:01:52]}  dxc5 {[%clk 0:02:10]} 15. Nxb5 {[%clk 0:01:41]}  Rxb5 {[%clk 0:02:06]} 16. Qa4 {[%clk 0:01:40]}  Rxb2 {[%clk 0:01:45]} 17. Rad1 {[%clk 0:01:26]}  Bd7 {[%clk 0:01:28]} 18. Nf4 {[%clk 0:01:17]}  Nd4 {[%clk 0:01:09]} 19. Qxa7 {[%clk 0:01:06]}  Rb5 {[%clk 0:00:49]} 20. Nd5 {[%clk 0:00:34]}  Ra5 {[%clk 0:00:43]} 21. Qb7 {[%clk 0:00:25]}  Rxa2 {[%clk 0:00:32]} 22. e5 {[%clk 0:00:20]}  Bxe5 {[%clk 0:00:16]} 23. Bxh6 {[%clk 0:00:20]}  Bg7 {[%clk 0:00:15]} 24. Bxg7 {[%clk 0:00:19]}  Kxg7 {[%clk 0:00:16]} 25. Rfe1 {[%clk 0:00:18]}  Be6 {[%clk 0:00:15]} 26. Qxe7 {[%clk 0:00:15]}  Bxd5 {[%clk 0:00:14]} 27. Qe5+ {[%clk 0:00:15]}  Qf6 {[%clk 0:00:14]} 28. Qxf6+ {[%clk 0:00:14]}  Kxf6 {[%clk 0:00:15]} 29. Bxd5 {[%clk 0:00:14]}  Rd8 {[%clk 0:00:15]} 30. Bxa2 {[%clk 0:00:14]}  Nf3+ {[%clk 0:00:13]} 31. Kg2 {[%clk 0:00:14]}  Nxe1+ {[%clk 0:00:12]} 32. Rxe1 {[%clk 0:00:15]}  Rd2 {[%clk 0:00:13]} 33. Bc4 {[%clk 0:00:15]}  Rc2 {[%clk 0:00:13]} 34. Re4 {[%clk 0:00:14]}  Kf5 {[%clk 0:00:13]} 35. Rf4+ {[%clk 0:00:14]}  Kg5 {[%clk 0:00:13]} 36. h4+ {[%clk 0:00:15]}  Kh6 {[%clk 0:00:13]} 37. Rxf7 {[%clk 0:00:15]}  Rxc4 {[%clk 0:00:13]} 38. Kh3 {[%clk 0:00:12]}  Rc1 {[%clk 0:00:12]} 39. g4 {[%clk 0:00:12]}  Rc3+ {[%clk 0:00:12]} 40. f3 {[%clk 0:00:11]}  Rxf3+ {[%clk 0:00:11]} 41. Rxf3 {[%clk 0:00:10]} 1-0


[Site "https://www.chess.com"]

[Event "Titled Tuesday Blitz February 28 Early 2023"]
[White "De Souza, Cristiano Gomes"]
[Black "Slade, Theodore"]
[WhiteFideId "2151758"]
[BlackFideId "426547"]
[WhiteElo "2068"]
[BlackElo "1964"]
[Result "1-0"]
[Round "04"]
[TimeControl "180+2"]
[Date "2023.02.28"]
[WhiteClock "0:00:51"]
[BlackClock "0:01:48"]

1. d4 {[%clk 0:03:00]}  d5 {[%clk 0:03:00]} 2. c4 {[%clk 0:03:00]}  e6 {[%clk 0:03:00]} 3. Nf3 {[%clk 0:03:00]}  Nf6 {[%clk 0:03:00]} 4. Nc3 {[%clk 0:03:00]}  Be7 {[%clk 0:03:01]} 5. Bg5 {[%clk 0:03:00]}  h6 {[%clk 0:03:00]} 6. Bh4 {[%clk 0:03:00]}  dxc4 {[%clk 0:02:57]} 7. e3 {[%clk 0:02:59]}  c5 {[%clk 0:02:48]} 8. Bxc4 {[%clk 0:02:57]}  cxd4 {[%clk 0:02:48]} 9. Nxd4 {[%clk 0:02:55]}  O-O {[%clk 0:02:45]} 10. O-O {[%clk 0:02:54]}  a6 {[%clk 0:02:45]} 11. Rc1 {[%clk 0:02:53]}  b5 {[%clk 0:02:45]} 12. Be2 {[%clk 0:02:53]}  Bb7 {[%clk 0:02:45]} 13. Bf3 {[%clk 0:02:53]}  Bxf3 {[%clk 0:02:44]} 14. Qxf3 {[%clk 0:02:53]}  Nbd7 {[%clk 0:02:40]} 15. Nc6 {[%clk 0:02:52]}  Qe8 {[%clk 0:02:40]} 16. Nxe7+ {[%clk 0:02:51]}  Qxe7 {[%clk 0:02:41]} 17. Ne4 {[%clk 0:02:48]}  Rac8 {[%clk 0:02:39]} 18. Bxf6 {[%clk 0:02:46]}  Nxf6 {[%clk 0:02:39]} 19. Nxf6+ {[%clk 0:02:44]}  Qxf6 {[%clk 0:02:40]} 20. Rxc8 {[%clk 0:02:34]}  Rxc8 {[%clk 0:02:39]} 21. Qb7 {[%clk 0:02:24]}  Rc2 {[%clk 0:02:33]} 22. Qxa6 {[%clk 0:01:57]}  Qxb2 {[%clk 0:02:32]} 23. g3 {[%clk 0:01:51]}  b4 {[%clk 0:02:30]} 24. Qa8+ {[%clk 0:01:46]}  Kh7 {[%clk 0:02:30]} 25. Qe4+ {[%clk 0:01:45]}  g6 {[%clk 0:02:30]} 26. h4 {[%clk 0:01:37]}  h5 {[%clk 0:02:30]} 27. Qf4 {[%clk 0:01:34]}  Kg7 {[%clk 0:02:29]} 28. Rd1 {[%clk 0:01:31]}  e5 {[%clk 0:02:21]} 29. Qf3 {[%clk 0:01:08]}  Qxa2 {[%clk 0:02:21]} 30. Rd6 {[%clk 0:01:01]}  e4 {[%clk 0:01:54]} 31. Qf6+ {[%clk 0:00:59]}  Kh7 {[%clk 0:01:47]} 32. Rd8 {[%clk 0:00:53]}  Qa1+ {[%clk 0:01:48]} 33. Qxa1 {[%clk 0:00:51]} 1-0


[Site "https://www.chess.com"]